bitfinex/quotes_SOLUSD_20241118
["timestamp","ask_amount","ask_price","bid_price","bid_amount"]
[1731890459382,0.1,235.89,235.74,27.04408572]
[1731890459383,27.04408572,235.81,235.74,27.04408572]
[1731890459687,27.04408572,235.75,235.72,6.63757897]
[1731890459854,27.04408572,235.79,235.71,4.2423]
[1731890460362,27.04408572,235.77,235.69,14.8498]
[1731890461388,27.04408572,235.71,235.63,10.6095]
[1731890461678,27.04408572,235.69,235.63,10.6095]
[1731890461857,27.04408572,235.69,235.63,14.8534]
[1731890462278,27.04408572,235.64,235.57,10.6122]
[1731890462484,27.04408572,235.67,235.5,4.2462]
[1731890462485,27.04408572,235.58,235.5,4.2462]
[1731890462689,27.04408572,235.6,235.53,27.04408572]
[1731890462857,27.04408572,235.62,235.53,27.04408572]
[1731890463266,27.04408572,235.6,235.51,27.04408572]
[1731890463477,27.04408572,235.58,235.5,14.8616]
[1731890464176,27.04408572,235.58,235.5,21.50599003]
[1731890464560,27.04408572,235.6,235.51,27.04408572]
[1731890464782,27.04408572,235.66,235.59,27.04408572]
[1731890465356,27.04408572,235.66,235.57,27.04408572]
[1731890465857,27.04408572,235.66,235.58,4.37029]
[1731890466179,27.04408572,235.6,235.47,27.04408572]
[1731890466396,27.04408572,235.54,235.48,4.2466]
[1731890466562,27.04408572,235.54,235.48,10.6166]
[1731890466766,27.04408572,235.52,235.48,10.6166]
[1731890467069,6.6057,235.65,235.48,10.6166]
[1731890467070,27.04408572,235.5,235.48,10.6166]
[1731890469166,31.29038572,235.5,235.35,27.04408572]
[1731890469388,27.04408572,235.37,235.36,10.6219]
[1731890469683,27.04408572,235.37,235.36,6.64897305]
[1731890469989,27.04408572,235.37,235.3,10.6244]
[1731890470170,27.04408572,235.33,235.3,10.6244]
[1731890470490,27.04408572,235.33,235.3,14.8742]
[1731890470859,27.04408572,235.31,235.3,10.6244]
[1731890471115,27.04408572,235.31,235.23,34.8789]
[1731890471394,27.04408572,235.24,235.23,10.6278]
[1731890472397,27.04408572,235.24,235.23,10.75329]
[1731890472569,27.04408572,235.32,235.23,10.75329]
[1731890472570,27.04408572,235.26,235.23,10.75329]
[1731890473067,27.04408572,235.24,235.19,4.2518]
[1731890473263,27.04408572,235.22,235.19,4.2518]
[1731890473774,27.04408572,235.28,235.2,0.09367462]
[1731890473983,37.46176354,235.5,235.2,0.09367462]
[1731890473984,27.04408572,235.32,235.25,27.04408572]
[1731890474269,27.04408572,235.26,235.19,41.92558572]
[1731890474479,27.04408572,235.26,235.2,20.0]
[1731890474909,27.04408572,235.26,235.19,41.92558572]
[1731890474910,27.04408572,235.32,235.24,27.04408572]
[1731890475486,27.04408572,235.32,235.25,43.776884]
[1731890475809,27.04408572,235.34,235.26,0.12549]
[1731890476113,4.2468,235.47,235.29,24.027864]
[1731890476406,168.9057,235.48,235.29,24.027864]
[1731890476407,27.04408572,235.38,235.31,0.12549]
[1731890476984,27.04408572,235.35,235.31,0.12549]
[1731890477193,27.04408572,235.33,235.31,0.12549]
[1731890477385,27.04408572,235.33,235.24,10.6273]
[1731890477587,27.04408572,235.28,235.24,10.6273]
[1731890478482,4.2468,235.47,235.26,27.04408572]
[1731890478699,27.04408572,235.41,235.31,27.04408572]
[1731890479407,27.04408572,235.41,235.32,0.12549]
[1731890479582,27.04408572,235.43,235.34,0.25098]
[1731890479792,27.04408572,235.43,235.35,27.04408572]
[1731890480091,27.04408572,235.47,235.39,27.04408572]
[1731890480279,27.04408572,235.49,235.4,0.12549]
[1731890480896,27.04408572,235.47,235.4,0.12549]
[1731890481098,27.04408572,235.47,235.4,24.027864]
[1731890481303,27.04408572,235.49,235.42,0.25098]
[1731890481502,27.04408572,235.49,235.44,0.12549]
[1731890481704,27.04408572,235.53,235.45,27.13776034]
[1731890481899,27.04408572,235.55,235.47,50.82096972]
[1731890482103,27.04408572,235.57,235.5,0.12549]
[1731890482409,27.04408572,235.59,235.5,44.027864]
[1731890482709,27.04408572,235.61,235.56,0.12549]
[1731890483087,27.04408572,235.63,235.55,51.07194972]
[1731890483291,27.04408572,235.63,235.57,0.12549]
[1731890483499,27.04408572,235.63,235.59,0.12549]
[1731890484106,27.04408572,235.61,235.58,14.8569]
[1731890484497,6.6387,235.72,235.58,14.8569]
[1731890484498,27.04408572,235.63,235.59,0.12549]
[1731890485203,27.04408572,235.61,235.58,10.6121]
[1731890485513,31.28718572,235.68,235.53,4.2457]
[1731890485514,27.04408572,235.59,235.53,4.2457]
[1731890485697,27.04408572,235.57,235.54,0.12549]
[1731890485906,27.04408572,235.55,235.46,10.6174]
[1731890486100,27.04408572,235.52,235.46,10.6174]
[1731890486493,27.04408572,235.72,235.59,162.9]
[1731890486696,27.04408572,235.64,235.56,6.5917]
[1731890487127,27.04408572,235.62,235.55,20.0]
[1731890487286,27.04408572,235.62,235.56,0.12549]
[1731890487493,27.04408572,235.62,235.58,0.12549]
[1731890488220,27.04408572,235.64,235.58,0.12549]
[1731890488807,27.04408572,235.64,235.59,4.2446]
[1731890489122,27.04408572,235.66,235.59,4.2446]
[1731890489504,27.04408572,235.66,235.6,0.25098]
[1731890489705,4.2416,235.76,235.65,0.12549]
[1731890489900,27.04408572,235.75,235.66,27.04408572]
[1731890490422,27.04408572,235.75,235.67,0.12549]
[1731890490601,172.8997,235.86,235.68,14.8506]
[1731890490602,27.04408572,235.77,235.68,14.8506]
[1731890490805,27.04408572,235.84,235.75,0.12549]
[1731890491005,27.04408572,235.84,235.76,27.04408572]
[1731890491514,27.04408572,235.84,235.75,0.12549]
[1731890491700,27.04408572,235.82,235.75,0.12549]
[1731890492116,27.04408572,235.82,235.73,0.12549]
[1731890492624,27.04408572,235.78,235.69,0.12549]
[1731890492920,0.09367462,235.84,235.69,0.12549]
[1731890492921,27.04408572,235.76,235.69,0.12549]
[1731890493421,4.2409,235.8,235.69,0.12549]
[1731890493422,27.04408572,235.78,235.71,0.12549]
[1731890493669,0.09367462,235.84,235.73,27.04408572]
[1731890493670,27.04408572,235.82,235.73,27.04408572]
[1731890493801,27.04408572,235.82,235.74,0.12549]
[1731890494423,27.04408572,235.8,235.72,0.12549]
[1731890495304,27.04408572,235.78,235.7,14.8493]
[1731890495512,27.04408572,235.78,235.71,0.12549]
[1731890495698,27.04408572,235.78,235.7,10.6067]
[1731890495899,27.04408572,235.72,235.64,10.609]
[1731890496115,27.04408572,235.7,235.64,10.609]
[1731890496538,27.04408572,235.7,235.61,31.28838572]
[1731890496703,27.04408572,235.68,235.61,4.2443]
[1731890497025,27.04408572,235.66,235.59,4.2445]
[1731890497320,27.04408572,235.62,235.54,4.2454]
[1731890497522,27.04408572,235.62,235.54,14.8593]
[1731890497728,27.04408572,235.62,235.54,10.6139]
[1731890498019,31.28828572,235.62,235.54,10.6139]
[1731890498399,27.04408572,235.6,235.51,27.04408572]
[1731890498602,27.04408572,235.57,235.48,41.90708572]
[1731890499610,27.04408572,235.62,235.52,27.04408572]
[1731890499809,27.04408572,235.68,235.52,27.04408572]
[1731890499810,27.04408572,235.68,235.6,27.04408572]
[1731890500226,27.04408572,235.68,235.58,27.04408572]
[1731890500528,27.04408572,235.68,235.59,0.12549]
[1731890500838,27.04408572,235.68,235.6,27.04408572]
[1731890501145,27.04408572,235.68,235.6,31.28848572]
[1731890501629,27.04408572,235.62,235.56,4.2451]
[1731890502129,27.04408572,235.62,235.54,4.2454]
[1731890502324,0.09367462,235.67,235.53,27.04408572]
[1731890502325,27.04408572,235.6,235.53,27.04408572]
[1731890502530,27.04408572,235.6,235.52,10.6143]
[1731890503103,27.04408572,235.67,235.59,27.04408572]
[1731890503404,27.04408572,235.65,235.57,27.04408572]
[1731890504004,27.04408572,235.65,235.55,27.04408572]
[1731890504327,27.04408572,235.65,235.57,27.04408572]
[1731890504533,27.04408572,235.65,235.57,31.28908572]
[1731890504725,31.28768572,235.65,235.57,27.04408572]
[1731890505932,31.28778572,235.65,235.57,27.04408572]
[1731890506144,31.28778572,235.65,235.56,4.245]
[1731890506145,27.04408572,235.63,235.56,4.245]
[1731890506305,27.04408572,235.63,235.54,27.04408572]
[1731890506514,27.04408572,235.61,235.52,37.65838572]
[1731890506734,27.04408572,235.61,235.53,0.12549]
[1731890507334,27.04408572,235.6,235.53,0.12549]
[1731890507503,27.04408572,235.58,235.5,31.29018572]
[1731890507711,27.04408572,235.56,235.48,4.2465]
[1731890508343,27.04408572,235.58,235.49,27.04408572]
[1731890508512,31.28888572,235.58,235.49,31.29038572]
[1731890509048,27.04408572,235.56,235.48,10.6166]
[1731890509338,27.04408572,235.56,235.48,14.8632]
[1731890509932,27.04408572,235.58,235.49,27.04408572]
[1731890510114,0.09367462,235.62,235.53,27.04408572]
[1731890510115,27.04408572,235.62,235.53,27.04408572]
[1731890510437,27.04408572,235.62,235.54,0.12549]
[1731890510609,27.04408572,235.6,235.52,0.12549]
[1731890511018,27.04408572,235.58,235.49,27.04408572]
[1731890511221,27.04408572,235.56,235.49,0.12549]
[1731890512431,27.04408572,235.56,235.49,4.37179]
[1731890513143,27.04408572,235.56,235.42,16.975715]
[1731890513144,27.04408572,235.56,235.25,27.04408572]
[1731890513145,0.21916462,235.42,235.25,27.04408572]
[1731890513339,27.04408572,235.36,235.25,27.04408572]
[1731890513861,27.04408572,235.36,235.27,27.04408572]
[1731890514022,27.04408572,235.42,235.32,27.04408572]
[1731890514640,27.04408572,235.38,235.3,27.04408572]
[1731890515429,27.04408572,235.44,235.36,27.04408572]
[1731890515636,27.04408572,235.46,235.36,27.04408572]
[1731890516227,27.04408572,235.46,235.39,0.12549]
[1731890516448,27.04408572,235.48,235.39,0.12549]
[1731890517249,27.04408572,235.48,235.4,4.248]
[1731890517452,27.04408572,235.5,235.43,0.12549]
[1731890517966,6.5869,235.55,235.36,16.2439]
[1731890517967,10.8323,235.55,235.46,0.12549]
[1731890518246,27.04408572,235.54,235.46,0.12549]
[1731890518634,27.04408572,235.52,235.46,0.12549]
[1731890518831,27.04408572,235.5,235.42,27.04408572]
[1731890519042,27.04408572,235.47,235.41,0.25098]
[1731890519244,27.04408572,235.47,235.41,0.12549]
[1731890519548,27.04408572,235.47,235.4,0.12549]
[1731890519722,27.04408572,235.47,235.39,0.25098]
[1731890520332,27.04408572,235.43,235.39,0.12549]
[1731890520541,27.04408572,235.47,235.4,0.12549]
[1731890520937,27.04408572,235.43,235.35,33.11048572]
[1731890521243,27.04408572,235.43,235.36,0.12549]
[1731890521443,27.04408572,235.41,235.33,10.623]
[1731890521650,0.09367462,235.53,235.4,27.04408572]
[1731890521963,27.04408572,235.5,235.4,27.04408572]
[1731890522253,27.04408572,235.48,235.4,27.04408572]
[1731890522636,27.04408572,235.48,235.41,0.12549]
[1731890522855,27.04408572,235.48,235.41,20.12549]
[1731890523438,27.04408572,235.52,235.44,27.04408572]
[1731890523764,27.04408572,235.52,235.45,0.12549]
[1731890524632,27.04408572,235.5,235.45,0.12549]
[1731890524835,27.04408572,235.52,235.43,20.12549]
[1731890525034,27.04408572,235.54,235.47,20.25098]
[1731890525235,27.04408572,235.56,235.49,0.12549]
[1731890525955,27.04408572,235.56,235.49,0.25098]
[1731890526660,27.04408572,235.56,235.51,0.12549]
[1731890527361,27.04408572,235.58,235.51,20.25098]
[1731890527567,27.04408572,235.61,235.54,0.12549]
[1731890527760,27.04408572,235.61,235.51,47.29506572]
[1731890528364,27.04408572,235.61,235.53,20.12549]
[1731890528539,27.04408572,235.59,235.53,20.12549]
[1731890528748,4.2439,235.63,235.52,10.6148]
[1731890528749,27.04408572,235.55,235.52,10.6148]
[1731890529341,27.04408572,235.53,235.45,15.6682]
[1731890529545,27.04408572,235.48,235.45,15.6682]
[1731890529738,27.04408572,235.48,235.42,14.8668]
[1731890530040,27.04408572,235.48,235.35,0.1]
[1731890530041,27.04408572,235.44,235.37,14.8698]
[1731890530260,27.04408572,235.41,235.37,14.8698]
[1731890530455,27.04408572,235.41,235.37,10.6214]
[1731890531061,27.04408572,235.43,235.37,10.6214]
[1731890531267,27.04408572,235.43,235.38,0.12549]
[1731890531970,27.04408572,235.41,235.38,0.12549]
[1731890532376,27.04408572,235.43,235.38,0.12549]
[1731890532552,27.04408572,235.47,235.4,0.12549]
[1731890532882,27.04408572,235.53,235.45,27.04408572]
[1731890533170,27.04408572,235.55,235.46,20.12549]
[1731890533348,27.04408572,235.55,235.47,27.16957572]
[1731890533550,27.04408572,235.55,235.48,0.12549]
[1731890533944,27.04408572,235.55,235.46,20.0]
[1731890533945,27.04408572,235.55,235.47,27.16957572]
[1731890534342,27.04408572,235.55,235.47,31.41617572]
[1731890535469,6.3889,235.61,235.47,4.37209]
[1731890535470,27.04408572,235.53,235.47,4.37209]
[1731890535673,27.04408572,235.55,235.47,4.37209]
[1731890535965,27.04408572,235.55,235.48,0.12549]
[1731890536168,33.53298572,235.68,235.54,0.12549]
[1731890536169,27.04408572,235.64,235.54,0.12549]
[1731890536371,27.04408572,235.64,235.55,27.04408572]
[1731890536575,27.04408572,235.6,235.54,0.12549]
[1731890536867,27.04408572,235.58,235.5,0.12549]
[1731890537058,27.04408572,235.6,235.48,0.25098]
[1731890537271,27.04408572,235.6,235.52,27.04408572]
[1731890537443,4.2446,235.59,235.52,27.04408572]
[1731890537650,27.04408572,235.58,235.52,0.12549]
[1731890538251,27.04408572,235.54,235.47,10.617]
[1731890538449,27.04408572,235.52,235.42,27.04408572]
[1731890538703,27.04408572,235.5,235.44,4.2472]
[1731890539651,27.04408572,235.52,235.44,4.2472]
[1731890540086,31.28898572,235.58,235.5,27.04408572]
[1731890540250,31.28858572,235.6,235.5,27.04408572]
[1731890540453,27.04408572,235.58,235.5,27.04408572]
[1731890540764,27.04408572,235.58,235.51,0.12549]
[1731890541166,31.28898572,235.58,235.51,0.12549]
[1731890541373,27.04408572,235.56,235.48,0.12549]
[1731890542081,27.04408572,235.54,235.45,4.2471]
[1731890542252,27.04408572,235.5,235.42,37.66328572]
[1731890542572,27.04408572,235.5,235.42,41.91098572]
[1731890542978,27.04408572,235.52,235.44,27.04408572]
[1731890543153,31.28998572,235.52,235.43,4.2474]
[1731890543477,31.28998572,235.52,235.43,24.2474]
[1731890544068,31.28998572,235.52,235.44,27.04408572]
[1731890544271,31.28968572,235.54,235.46,27.04408572]
[1731890544466,23.87055862,235.57,235.5,27.04408572]
[1731890544467,4.2451,235.57,235.5,27.04408572]
[1731890544665,27.04408572,235.62,235.54,27.04408572]
[1731890544857,27.04408572,235.66,235.59,0.12549]
[1731890545178,27.04408572,235.66,235.58,27.04408572]
[1731890545179,4.2433,235.67,235.6,27.04408572]
[1731890545670,4.2433,235.67,235.59,4.2445]
[1731890545671,27.04408572,235.66,235.59,0.12549]
[1731890545981,27.04408572,235.66,235.58,27.04408572]
[1731890546159,27.04408572,235.6,235.51,10.615]
[1731890546359,16.61161908,235.56,235.47,4.2467]
[1731890546577,16.61161908,235.54,235.47,4.2467]
[1731890546779,16.61161908,235.52,235.45,31.0772]
[1731890546992,16.61161908,235.5,235.45,10.6176]
[1731890548157,16.61161908,235.47,235.39,6.4239]
[1731890548464,16.61161908,235.47,235.4,14.8679]
[1731890549074,16.61161908,235.47,235.4,10.6199]
[1731890549774,16.61161908,235.47,235.41,0.12549]
[1731890550178,4.2467,235.48,235.41,0.12549]
[1731890550876,4.2467,235.48,235.4,27.23151908]
[1731890551078,16.61161908,235.47,235.39,0.12549]
[1731890551466,16.61161908,235.47,235.38,16.61161908]
[1731890551866,16.61161908,235.41,235.32,16.61161908]
[1731890552380,16.61161908,235.43,235.34,16.61161908]
[1731890552881,16.61161908,235.39,235.3,16.61161908]
[1731890553075,16.61161908,235.37,235.29,4.25]
[1731890553584,16.61161908,235.37,235.3,16.61161908]
[1731890554285,4.34247462,235.36,235.28,16.61161908]
[1731890554598,16.61161908,235.32,235.24,16.61161908]
[1731890555165,20.86041908,235.36,235.29,16.61161908]
[1731890555370,4.2488,235.36,235.29,16.61161908]
[1731890555773,20.86011908,235.38,235.29,16.61161908]
[1731890556481,16.61161908,235.36,235.28,0.12549]
[1731890557059,23.776884,235.35,235.27,16.61161908]
[1731890557979,16.61161908,235.34,235.27,16.61161908]
[1731890558184,4.2493,235.33,235.27,16.61161908]
[1731890558477,16.61161908,235.32,235.25,16.61161908]
[1731890558858,16.61161908,235.32,235.23,16.61161908]
[1731890559060,4.2493,235.33,235.22,10.6283]
[1731890559061,16.61161908,235.28,235.22,10.6283]
[1731890559260,4.2493,235.33,235.16,10.6307]
[1731890559261,16.61161908,235.26,235.16,10.6307]
[1731890559464,16.61161908,235.21,235.12,4.2531]
[1731890559675,16.61161908,235.21,235.12,20.86471908]
[1731890559881,16.61161908,235.21,235.12,16.61161908]
[1731890560070,16.61161908,235.19,235.12,16.61161908]
[1731890560386,20.86351908,235.19,235.11,10.6332]
[1731890560889,20.86351908,235.19,235.12,16.61161908]
[1731890561184,16.61161908,235.23,235.16,16.61161908]
[1731890561563,4.2506,235.26,235.18,16.61161908]
[1731890561883,16.61161908,235.3,235.22,16.61161908]
[1731890562258,16.61161908,235.26,235.19,16.61161908]
[1731890562463,16.61161908,235.26,235.17,4.2522]
[1731890562464,16.61161908,235.26,235.17,20.86381908]
[1731890562660,16.61161908,235.24,235.17,4.2522]
[1731890562867,16.61161908,235.26,235.18,16.61161908]
[1731890563382,16.61161908,235.28,235.2,16.61161908]
[1731890563762,16.61161908,235.24,235.17,14.8828]
[1731890563961,0.09367462,235.31,235.15,0.4668373]
[1731890563962,16.61161908,235.22,235.15,0.4668373]
[1731890564171,16.61161908,235.2,235.15,0.4668373]
[1731890564467,16.61161908,235.22,235.15,0.4668373]
[1731890565672,16.61161908,235.22,235.15,21.33095638]
[1731890565972,16.61161908,235.22,235.15,17.07845638]
[1731890566382,4.2515,235.21,235.15,0.4668373]
[1731890567092,16.61161908,235.2,235.15,0.4668373]
[1731890568573,4.2518,235.19,235.15,0.4668373]
[1731890568774,16.61161908,235.18,235.15,0.4668373]
[1731890569313,46.87020308,235.16,235.15,0.4668373]
[1731890570397,51.12260308,235.16,235.15,0.4668373]
[1731890570981,6.5686,235.23,235.15,0.4668373]
[1731890571192,4.2506,235.26,235.19,16.61161908]
[1731890571794,20.86221908,235.26,235.19,16.61161908]
[1731890572098,20.86221908,235.26,235.17,16.61161908]
[1731890572471,16.61161908,235.22,235.15,0.4668373]
[1731890572703,16.61161908,235.22,235.15,1.20458286]
[1731890573362,16.61161908,235.2,235.15,0.4668373]
[1731890573979,16.61161908,235.22,235.15,0.4668373]
[1731890574183,4.2515,235.21,235.15,0.4668373]
[1731890574384,16.61161908,235.2,235.15,0.4668373]
[1731890574583,16.61161908,235.18,235.15,0.4668373]
[1731890574976,23.776884,235.19,235.15,0.4668373]
[1731890575579,16.61161908,235.18,235.15,0.4668373]
[1731890576090,16.61161908,235.22,235.15,0.4668373]
[1731890576289,20.86251908,235.24,235.16,16.61161908]
[1731890576596,4.25,235.29,235.2,16.61161908]
[1731890576977,16.61161908,235.24,235.16,16.61161908]
[1731890577304,16.61161908,235.24,235.15,0.4668373]
[1731890577690,16.61161908,235.22,235.15,0.4668373]
[1731890578073,16.61161908,235.2,235.15,0.4668373]
[1731890578907,16.61161908,235.18,235.15,0.4668373]
[1731890579480,16.61161908,235.16,235.15,0.4668373]
[1731890580004,40.38850308,235.16,235.15,0.4668373]
[1731890580306,44.64090308,235.16,235.15,0.4668373]
[1731890580594,44.7345777,235.16,235.15,0.4668373]
[1731890581384,45.0855577,235.16,235.15,0.4668373]
[1731890581977,0.1,235.12,234.99,16.61161908]
[1731890582307,16.61161908,235.07,234.99,16.61161908]
[1731890582806,16.61161908,235.09,235.01,16.61161908]
[1731890582987,4.2524,235.16,235.07,16.61161908]
[1731890583186,16.61161908,235.21,235.13,16.61161908]
[1731890583418,4.2513,235.22,235.15,16.61161908]
[1731890583703,16.61161908,235.21,235.13,16.61161908]
[1731890583878,16.61161908,235.17,235.05,0.21916462]
[1731890584079,16.61161908,235.17,235.09,16.61161908]
[1731890584586,20.86401908,235.17,235.09,16.61161908]
[1731890584784,20.86311908,235.21,235.13,16.61161908]
[1731890585299,20.86311908,235.21,235.11,16.61161908]
[1731890585700,16.61161908,235.19,235.11,16.61161908]
[1731890586087,4.252,235.18,235.09,27.24581908]
[1731890586485,4.252,235.18,235.11,16.61161908]
[1731890587006,10.6262,235.27,235.15,16.61161908]
[1731890587007,4.2516,235.21,235.15,16.61161908]
[1731890587185,4.2512,235.23,235.15,16.61161908]
[1731890587384,16.61161908,235.22,235.13,16.61161908]
[1731890587603,4.25,235.29,235.15,16.61161908]
[1731890587805,16.61161908,235.23,235.15,16.61161908]
[1731890587994,4.2513,235.22,235.13,16.61161908]
[1731890588428,16.61161908,235.19,235.11,16.61161908]
[1731890588600,4.2513,235.22,235.13,16.61161908]
[1731890588801,16.61161908,235.21,235.11,31.49811908]
[1731890589113,20.86261908,235.24,235.15,16.61161908]
[1731890589708,16.61161908,235.18,235.11,10.6333]
[1731890590017,20.86341908,235.2,235.11,27.24491908]
[1731890590519,16.61161908,235.18,235.11,10.6333]
[1731890592321,16.61161908,235.18,235.11,27.24491908]
[1731890593209,16.61161908,235.16,235.07,16.61161908]
[1731890594202,16.61161908,235.16,235.07,31.50061908]
[1731890594402,20.86371908,235.18,235.09,16.61161908]
[1731890594906,16.61161908,235.22,235.15,16.61161908]
[1731890595307,20.86261908,235.24,235.15,16.61161908]
[1731890596605,20.86231908,235.26,235.17,16.61161908]
[1731890596798,20.86181908,235.28,235.21,16.61161908]
[1731890598025,16.61161908,235.22,235.13,22.988]
[1731890598196,16.61161908,235.18,235.11,10.6331]
[1731890598397,0.19367462,235.27,235.11,10.6331]
[1731890598398,16.61161908,235.2,235.12,16.61161908]
[1731890599228,16.61161908,235.22,235.12,16.61161908]
[1731890599528,20.86261908,235.24,235.14,16.61161908]
[1731890600509,16.61161908,235.22,235.14,20.86421908]
[1731890602904,20.86301908,235.22,235.14,20.86421908]
[1731890603210,16.61161908,235.2,235.11,10.6331]
[1731890603532,16.61161908,235.2,235.12,4.253]
[1731890603900,16.61161908,235.2,235.12,20.86461908]
[1731890604103,16.61161908,235.18,235.11,10.6331]
[1731890604306,16.61161908,235.18,235.11,14.8864]
[1731890604828,16.61161908,235.16,235.11,10.6331]
[1731890605024,20.86371908,235.18,235.11,10.6331]
[1731890606399,16.61161908,235.16,235.06,14.8897]
[1731890606629,16.61161908,235.16,235.08,16.61161908]
[1731890606825,16.61161908,235.16,235.06,31.50131908]
[1731890607017,4.2521,235.18,235.06,14.8897]
[1731890607018,16.61161908,235.14,235.06,14.8897]
[1731890608521,16.61161908,235.12,235.05,0.09367462]
[1731890608736,16.61161908,235.08,235.05,0.09367462]
[1731890610120,16.61161908,235.13,235.05,16.7052937]
[1731890610323,16.61161908,235.15,235.05,16.7052937]
[1731890610532,16.61161908,235.15,235.07,16.61161908]
[1731890610533,20.86431908,235.15,235.07,16.61161908]
[1731890611129,20.86431908,235.15,235.05,10.72967462]
[1731890611130,16.61161908,235.13,235.05,10.72967462]
[1731890611427,16.61161908,235.09,235.05,0.09367462]
[1731890612430,20.86531908,235.09,235.05,0.09367462]
[1731890612616,4.2537,235.09,235.05,0.09367462]
[1731890613245,20.86531908,235.09,235.05,0.09367462]
[1731890614129,16.61161908,235.07,235.05,0.09367462]
[1731890614337,20.86531908,235.09,235.05,0.09367462]
[1731890615828,4.2537,235.09,235.05,0.09367462]
[1731890616027,16.61161908,235.07,235.05,0.09367462]
[1731890616229,4.2537,235.09,235.05,0.09367462]
[1731890616230,10.42810668,235.06,235.05,0.09367462]
[1731890617533,34.20499068,235.06,235.05,0.09367462]
[1731890617729,38.45919068,235.06,235.05,0.09367462]
[1731890622241,34.20499068,235.1,235.05,0.09367462]
[1731890622437,10.42810668,235.1,235.05,0.09367462]
[1731890623138,10.42810668,235.08,235.05,0.09367462]
[1731890623318,10.42810668,235.06,235.05,0.09367462]
[1731890623639,34.20499068,235.06,235.05,0.09367462]
[1731890623809,38.9038453,235.06,235.05,0.09367462]
[1731890624321,0.34465462,235.03,234.91,1.20650775]
[1731890624517,10.42810668,234.96,234.91,0.4668373]
[1731890625924,14.68420668,234.96,234.91,0.4668373]
[1731890626422,0.34465462,235.03,234.91,10.89494398]
[1731890626423,10.42810668,235.0,234.91,10.89494398]
[1731890627238,10.42810668,235.0,234.91,15.3659373]
[1731890627437,10.42810668,235.04,234.96,10.42810668]
[1731890628140,10.42810668,235.04,234.97,4.2558]
[1731890628450,14.68240668,235.06,234.98,10.42810668]
[1731890629017,15.9308,235.14,234.98,10.42810668]
[1731890629018,14.68160668,235.1,235.02,10.42810668]
[1731890629242,10.42810668,235.1,235.02,10.42810668]
[1731890629925,10.42810668,235.12,235.04,10.42810668]
[1731890630140,17.61268965,235.16,235.04,10.42810668]
[1731890630141,0.1,235.33,235.12,20.12549]
[1731890630329,10.42810668,235.29,235.12,20.12549]
[1731890630530,10.42810668,235.31,235.13,0.22549]
[1731890630740,10.42810668,235.31,235.14,0.12549]
[1731890631041,10.42810668,235.29,235.21,10.42810668]
[1731890632850,10.42810668,235.27,235.19,10.42810668]
[1731890633358,10.42810668,235.32,235.23,10.42810668]
[1731890633656,10.42810668,235.3,235.21,10.42810668]
[1731890634354,20.89993662,235.32,235.25,16.65043662]
[1731890634560,16.65043662,235.34,235.25,16.65043662]
[1731890634850,16.65043662,235.38,235.29,16.65043662]
[1731890635031,16.65043662,235.4,235.31,16.65043662]
[1731890635354,4.2479,235.41,235.29,16.65043662]
[1731890635355,16.65043662,235.36,235.29,16.65043662]
[1731890635928,20.89933662,235.36,235.27,16.65043662]
[1731890636457,20.89933662,235.36,235.24,25.7859]
[1731890636458,16.65043662,235.32,235.24,25.7859]
[1731890636756,20.89933662,235.36,235.27,16.65043662]
[1731890636942,20.89933662,235.36,235.29,16.65043662]
[1731890637254,4.2489,235.36,235.29,16.65043662]
[1731890638831,24.12153862,235.42,235.27,20.90073662]
[1731890639056,16.65043662,235.36,235.27,20.90073662]
[1731890640674,20.89933662,235.36,235.27,20.90073662]
[1731890640855,20.89933662,235.36,235.24,10.6273]
[1731890640856,16.65043662,235.3,235.24,10.6273]
[1731890641827,16.65043662,235.3,235.21,22.67903662]
[1731890642034,16.65043662,235.26,235.18,10.6297]
[1731890642234,4.25,235.3,235.18,10.6297]
[1731890642235,20.90043662,235.3,235.21,16.65043662]
[1731890642557,20.90043662,235.3,235.23,16.65043662]
[1731890642761,4.25,235.3,235.23,16.65043662]
[1731890643164,23.776884,235.32,235.23,16.65043662]
[1731890643464,16.65043662,235.31,235.23,16.65043662]
[1731890644444,16.65043662,235.29,235.21,16.65043662]
[1731890644835,16.65043662,235.27,235.19,20.90223662]
[1731890645262,16.65043662,235.27,235.19,16.65043662]
[1731890645568,16.65043662,235.25,235.18,10.6297]
[1731890645933,16.65043662,235.23,235.13,4.2529]
[1731890646145,16.65043662,235.21,235.13,16.65043662]
[1731890646462,4.2517,235.2,235.13,16.65043662]
[1731890646961,16.65043662,235.19,235.11,16.65043662]
[1731890647140,4.2517,235.2,235.13,16.65043662]
[1731890648362,16.65043662,235.19,235.11,16.65043662]
[1731890649664,4.252,235.18,235.11,16.65043662]
[1731890651080,40.42732062,235.17,235.09,16.65043662]